bitfinex/quotes_BTCUSD_20241130
["timestamp","ask_amount","ask_price","bid_price","bid_amount"]
[1732963167957,0.0834,96532.0,96529.0,0.103595]
[1732963168376,0.0824,96532.0,96528.0,0.001]
[1732963168781,0.0834,96532.0,96530.0,0.103594]
[1732963168991,0.0824,96532.0,96531.0,0.103593]
[1732963169190,0.0824,96532.0,96529.0,0.001]
[1732963169409,0.0824,96532.0,96530.0,0.103594]
[1732963169607,0.0824,96532.0,96522.0,0.207206]
[1732963169817,0.0824,96532.0,96529.0,0.103595]
[1732963170018,0.0824,96532.0,96530.0,0.104594]
[1732963170648,0.0824,96532.0,96530.0,0.001]
[1732963171250,0.0824,96532.0,96528.0,0.103596]
[1732963171506,0.103594,96531.0,96523.0,0.103602]
[1732963171710,0.103594,96531.0,96522.0,0.001]
[1732963171916,0.0824,96532.0,96525.0,0.103599]
[1732963172121,0.185993,96532.0,96525.0,0.103599]
[1732963172327,0.185993,96532.0,96528.0,0.001]
[1732963172328,0.103594,96531.0,96528.0,0.001]
[1732963172543,0.0924,96532.0,96528.0,0.001]
[1732963172751,0.195992,96532.0,96528.0,0.001]
[1732963172975,0.001,96531.0,96526.0,0.103598]
[1732963173185,0.001,96531.0,96524.0,0.103601]
[1732963173605,0.001,96531.0,96520.0,0.2730238]
[1732963173606,0.001,96531.0,96522.0,0.207206]
[1732963173822,0.001,96531.0,96520.0,0.2730238]
[1732963174036,0.103603,96522.0,96520.0,0.0008641]
[1732963174279,0.243003,96522.0,96520.0,0.0008641]
[1732963175175,0.243003,96522.0,96521.0,0.0010432]
[1732963175395,0.24986038,96522.0,96521.0,0.0020432]
[1732963175603,0.25186038,96522.0,96521.0,0.0020432]
[1732963175817,0.25686038,96522.0,96521.0,0.0020432]
[1732963176031,0.25486038,96522.0,96521.0,0.0020432]
[1732963176266,0.24986038,96522.0,96521.0,0.0010432]
[1732963176906,0.25386038,96522.0,96521.0,0.0010432]
[1732963177332,0.36670559,96522.0,96521.0,0.0010432]
[1732963177547,0.56609891,96522.0,96521.0,0.0010432]
[1732963177757,0.56350798,96522.0,96521.0,0.0010432]
[1732963178201,0.57050798,96522.0,96521.0,0.0010432]
[1732963178419,0.57312067,96522.0,96521.0,0.0010432]
[1732963178874,0.57812067,96522.0,96521.0,0.0010432]
[1732963179101,0.56912067,96522.0,96521.0,0.0010432]
[1732963179558,0.57312067,96522.0,96521.0,0.0010432]
[1732963179763,0.58212067,96522.0,96521.0,0.0010432]
[1732963179980,0.57812067,96522.0,96521.0,0.0010432]
[1732963180396,0.68537294,96522.0,96521.0,0.0010432]
[1732963180820,0.71739191,96522.0,96521.0,0.0010432]
[1732963181444,0.61713964,96522.0,96521.0,0.0010432]
[1732963181652,0.58512067,96522.0,96521.0,0.0010432]
[1732963181856,0.61712414,96522.0,96521.0,0.0010432]
[1732963182065,0.58512067,96522.0,96521.0,0.0010432]
[1732963183358,0.58512067,96522.0,96500.0,5.92973895]
[1732963183359,0.266024,96502.0,96500.0,5.92973895]
[1732963183566,0.36886921,96502.0,96501.0,0.00222653]
[1732963183776,0.39952898,96502.0,96501.0,0.00222653]
[1732963185109,0.55352898,96502.0,96501.0,0.00222653]
[1732963185559,0.266025,96501.0,96500.0,5.91928962]
[1732963185764,0.36887021,96501.0,96500.0,5.91946943]
[1732963185974,0.39952998,96501.0,96500.0,5.91946943]
[1732963186407,0.55952998,96501.0,96500.0,5.79136943]
[1732963186841,0.56752998,96501.0,96500.0,5.79136943]
[1732963187667,0.57752998,96501.0,96500.0,5.79136943]
[1732963188096,0.56952998,96501.0,96500.0,5.78390885]
[1732963188512,0.57652998,96501.0,96500.0,5.78390885]
[1732963188716,0.58768529,96501.0,96500.0,5.78390885]
[1732963188927,0.58068529,96501.0,96500.0,5.78390885]
[1732963189143,0.59768529,96501.0,96500.0,5.78390885]
[1732963189373,0.58868529,96501.0,96500.0,5.78390885]
[1732963189580,0.58968529,96501.0,96500.0,5.78390885]
[1732963189798,0.75968529,96501.0,96500.0,5.78390885]
[1732963190000,0.75868529,96501.0,96500.0,5.78390885]
[1732963190232,0.76768529,96501.0,96500.0,5.78390885]
[1732963191487,0.75868529,96501.0,96500.0,5.78390885]
[1732963191918,0.75968529,96501.0,96500.0,5.78390885]
[1732963192123,0.79010701,96501.0,96500.0,5.78099366]
[1732963192346,0.79010701,96501.0,96500.0,5.76751652]
[1732963192550,0.79910701,96501.0,96500.0,5.76751652]
[1732963192768,0.78110701,96501.0,96500.0,5.76751652]
[1732963192980,0.79010701,96501.0,96500.0,5.76751652]
[1732963193194,0.79910701,96501.0,96500.0,5.76751652]
[1732963193396,0.78110701,96501.0,96500.0,5.76751652]
[1732963193608,0.77210701,96501.0,96500.0,5.76751652]
[1732963193821,0.78110701,96501.0,96500.0,5.76751652]
[1732963194735,0.79010701,96501.0,96500.0,5.76751652]
[1732963196198,0.85726571,96501.0,96500.0,5.76751652]
[1732963196407,0.85899411,96501.0,96500.0,5.76751652]
[1732963196617,0.84999411,96501.0,96500.0,5.76751652]
[1732963196835,0.77228152,96501.0,96500.0,5.76751652]
[1732963197252,0.78128152,96501.0,96500.0,5.76746652]
[1732963198103,0.79028152,96501.0,96500.0,5.76746652]
[1732963199556,0.7688598,96501.0,96500.0,5.76746652]
[1732963199758,0.7688598,96501.0,96500.0,5.76370488]
[1732963203793,0.56580003,96501.0,96500.0,5.76370488]
[1732963204030,0.14295482,96501.0,96500.0,5.76370488]
[1732963204264,0.0197284,96501.0,96500.0,5.94833088]
[1732963204518,0.1233534,96501.0,96500.0,5.84470488]
[1732963204732,0.0197284,96501.0,96500.0,5.84470488]
[1732963204944,0.0107284,96501.0,96500.0,5.84470488]
[1732963205165,0.1053534,96501.0,96500.0,5.84470488]
[1732963205384,0.0107284,96501.0,96500.0,5.84470488]
[1732963205595,0.0197284,96501.0,96500.0,5.84470488]
[1732963205806,0.1053534,96501.0,96500.0,5.84470488]
[1732963206018,0.1073534,96501.0,96500.0,5.84470488]
[1732963206231,0.1113534,96501.0,96500.0,5.84470488]
[1732963206446,0.1073534,96501.0,96500.0,5.84470488]
[1732963206875,0.1113534,96501.0,96500.0,5.84470488]
[1732963207088,0.11979951,96501.0,96500.0,5.84470488]
[1732963207756,0.11379951,96501.0,96500.0,5.84470488]
[1732963208254,0.11579951,96501.0,96500.0,5.76370488]
[1732963208454,0.14645928,96501.0,96500.0,5.76370488]
[1732963208662,0.14445928,96501.0,96500.0,5.76370488]
[1732963209106,0.14745928,96501.0,96500.0,5.76370488]
[1732963209318,0.12079951,96501.0,96500.0,5.76370488]
[1732963209532,0.11779951,96501.0,96500.0,5.76370488]
[1732963209741,0.11379951,96501.0,96500.0,5.76370488]
[1732963209995,0.12579951,96501.0,96500.0,5.76370488]
[1732963210861,0.11779951,96501.0,96500.0,5.76370488]
[1732963211086,0.12579951,96501.0,96500.0,5.76370488]
[1732963211311,0.12179951,96501.0,96500.0,5.76370488]
[1732963211532,0.12579951,96501.0,96500.0,5.76370488]
[1732963212211,0.12179951,96501.0,96500.0,5.76370488]
[1732963212427,0.25930449,96501.0,96500.0,5.76370488]
[1732963212638,0.3806711,96501.0,96500.0,5.76370488]
[1732963212872,0.41271209,96501.0,96500.0,5.76370488]
[1732963213085,0.31434548,96501.0,96500.0,5.76370488]
[1732963213741,0.30634548,96501.0,96500.0,5.76370488]
[1732963213954,0.31434548,96501.0,96500.0,5.76370488]
[1732963214166,0.3252491,96501.0,96500.0,5.76370488]
[1732963214592,0.58808056,96501.0,96500.0,5.75620202]
[1732963214802,0.60950228,96501.0,96500.0,5.75620202]
[1732963215010,0.61950228,96501.0,96500.0,5.67600148]
[1732963215657,0.51267082,96501.0,96500.0,5.67600148]
[1732963215883,0.4912491,96501.0,96500.0,5.67600148]
[1732963216059,0.4922491,96501.0,96500.0,5.67600148]
[1732963216820,0.4722491,96501.0,96500.0,5.67600148]
[1732963217029,0.4822491,96501.0,96500.0,5.67600148]
[1732963217448,0.4732491,96501.0,96500.0,5.67600148]
[1732963217657,0.4822491,96501.0,96500.0,5.67600148]
[1732963218115,0.4922491,96501.0,96500.0,5.67600148]
[1732963219149,0.50847149,96501.0,96500.0,5.67600148]
[1732963219582,0.51747149,96501.0,96500.0,5.67600148]
[1732963220483,0.50847149,96501.0,96500.0,5.67600148]
[1732963221384,0.51747149,96501.0,96500.0,5.67600148]
[1732963222244,0.5255268,96501.0,96500.0,5.67600148]
[1732963222704,0.51747149,96501.0,96500.0,5.67600148]
[1732963222914,0.50847149,96501.0,96500.0,5.67600148]
[1732963223138,0.49947149,96501.0,96500.0,5.67600148]
[1732963223356,0.50847149,96501.0,96500.0,5.67600148]
[1732963225327,0.55457149,96501.0,96500.0,5.67600148]
[1732963225806,0.54557149,96501.0,96500.0,5.67600148]
[1732963226048,0.57607706,96501.0,96500.0,5.67600148]
[1732963226274,0.56707706,96501.0,96500.0,5.67600148]
[1732963226504,0.55807706,96501.0,96500.0,5.67600148]
[1732963226757,0.57607706,96501.0,96500.0,5.67600148]
[1732963226998,0.56707706,96501.0,96500.0,5.67600148]
[1732963227222,0.57607706,96501.0,96500.0,5.67600148]
[1732963227955,0.56357149,96501.0,96500.0,5.67600148]
[1732963228444,0.51747149,96501.0,96500.0,5.67600148]
[1732963230387,0.50847149,96501.0,96500.0,5.67600148]
[1732963231132,0.51747149,96501.0,96500.0,5.67600148]
[1732963231869,0.50847149,96501.0,96500.0,5.67600148]
[1732963232094,0.43481172,96501.0,96500.0,5.67600148]
[1732963232570,0.26177073,96501.0,96500.0,5.67600148]
[1732963232803,0.12470313,96501.0,96500.0,5.67600148]
[1732963233063,0.13370313,96501.0,96500.0,5.67600148]
[1732963233290,0.15892373,96501.0,96500.0,5.67600148]
[1732963233543,0.13902011,96501.0,96500.0,5.67600148]
[1732963233785,0.12279951,96501.0,96500.0,5.67600148]
[1732963234273,0.13179951,96501.0,96500.0,5.67600148]
[1732963235302,0.12279951,96501.0,96500.0,5.67600148]
[1732963235549,0.11879951,96501.0,96500.0,5.67600148]
[1732963235790,0.0067284,96501.0,96500.0,5.90512748]
[1732963236031,0.0107284,96501.0,96500.0,5.90512748]
[1732963236276,0.0057284,96501.0,96500.0,5.90512748]
[1732963236507,0.0057284,96501.0,96500.0,5.80150148]
[1732963236974,0.0147284,96501.0,96500.0,5.90512748]
[1732963237188,0.0147284,96501.0,96500.0,5.80150148]
[1732963237855,0.0147284,96501.0,96500.0,5.90512748]
[1732963242206,0.0147284,96501.0,96500.0,5.80150148]
[1732963242643,0.02317451,96501.0,96500.0,5.80150148]
[1732963243078,0.04617451,96501.0,96500.0,5.80150148]
[1732963248298,0.14979951,96501.0,96500.0,5.75250148]
[1732963248510,0.14979951,96501.0,96500.0,5.67600148]
[1732963254204,0.04617451,96501.0,96500.0,5.75270148]
[1732963255820,0.14979951,96501.0,96500.0,5.75270148]
[1732963259444,0.04617451,96501.0,96500.0,5.75270148]
[1732963259661,0.0147284,96501.0,96500.0,5.85632748]
[1732963260749,0.0147284,96501.0,96500.0,5.90422748]
[1732963261616,0.0107284,96501.0,96500.0,5.90422748]
[1732963261840,0.0017284,96501.0,96500.0,5.90422748]
[1732963262073,0.0287284,96501.0,96500.0,5.80060148]
[1732963262307,0.0377284,96501.0,96500.0,5.90422748]
[1732963262757,0.0287284,96501.0,96500.0,5.90422748]
[1732963262973,0.0287284,96501.0,96500.0,5.90522748]
[1732963263435,0.0287284,96501.0,96500.0,5.90422748]
[1732963263670,0.0287284,96501.0,96500.0,5.90522748]
[1732963263891,0.0247284,96501.0,96500.0,5.90522748]
[1732963264111,0.0247284,96501.0,96500.0,5.90667782]
[1732963264553,0.0247284,96501.0,96500.0,5.90467782]
[1732963265432,0.0247284,96501.0,96500.0,5.90567782]
[1732963268295,0.0247284,96501.0,96500.0,5.80205182]
[1732963268507,0.0247284,96501.0,96500.0,5.90567782]
[1732963272053,0.0017284,96501.0,96500.0,5.90567782]
[1732963273794,0.0247284,96501.0,96500.0,5.67745182]
[1732963274015,0.13679951,96501.0,96500.0,5.67745182]
[1732963274440,0.13863278,96501.0,96500.0,5.67745182]
[1732963274655,0.13679951,96501.0,96500.0,5.67745182]
[1732963274896,0.13679951,96501.0,96500.0,5.67545182]
[1732963275123,0.14079951,96501.0,96500.0,5.67545182]
[1732963275828,0.14679951,96501.0,96500.0,5.67545182]
[1732963276050,0.13779951,96501.0,96500.0,5.67545182]
[1732963276988,0.14679951,96501.0,96500.0,5.67545182]
[1732963277207,0.14579951,96501.0,96500.0,5.67545182]
[1732963277427,0.14879951,96501.0,96500.0,5.67545182]
[1732963277860,0.14579951,96501.0,96500.0,5.67545182]
[1732963278305,0.13879951,96501.0,96500.0,5.67545182]
[1732963278734,0.15599699,96501.0,96500.0,5.67545182]
[1732963279372,0.16099699,96501.0,96500.0,5.67545182]
[1732963280051,0.03437199,96501.0,96500.0,5.67545182]
[1732963280267,0.02317451,96501.0,96500.0,5.67545182]
[1732963280999,0.0147284,96501.0,96500.0,5.77907782]
[1732963281431,0.04617451,96501.0,96500.0,5.77907782]
[1732963281646,0.0377284,96501.0,96500.0,5.77907782]
[1732963281860,0.04617451,96501.0,96500.0,5.77907782]
[1732963282082,0.03317451,96501.0,96500.0,5.67545182]
[1732963282329,0.14079951,96501.0,96500.0,5.67545182]
[1732963282753,0.03717451,96501.0,96500.0,5.67545182]
[1732963283413,0.03917451,96501.0,96500.0,5.67545182]
[1732963283854,0.03717451,96501.0,96500.0,5.67545182]
[1732963284063,0.03817451,96501.0,96500.0,5.77907782]
[1732963284716,0.03717451,96501.0,96500.0,5.77907782]
[1732963284939,0.03817451,96501.0,96500.0,5.77907782]
[1732963285181,0.03417451,96501.0,96500.0,5.77907782]
[1732963285396,0.03417451,96501.0,96500.0,5.86237782]
[1732963285610,0.03717451,96501.0,96500.0,5.86237782]
[1732963285825,0.03417451,96501.0,96500.0,5.86237782]
[1732963286063,0.03417451,96501.0,96500.0,5.75875182]
[1732963286300,0.03717451,96501.0,96500.0,5.75875182]
[1732963286741,0.03717451,96501.0,96500.0,5.86237782]
[1732963287395,0.03617451,96501.0,96500.0,5.86237782]
[1732963287824,0.03717451,96501.0,96500.0,5.86237782]
[1732963288038,0.03717451,96501.0,96500.0,5.75875182]
[1732963288272,0.03617451,96501.0,96500.0,5.75875182]
[1732963289407,0.03317451,96501.0,96500.0,5.75875182]
[1732963289828,0.03517451,96501.0,96500.0,5.75875182]
[1732963290491,0.03717451,96501.0,96500.0,5.75875182]
[1732963290723,0.03317451,96501.0,96500.0,5.86237782]
[1732963290940,0.03317451,96501.0,96500.0,5.75875182]
[1732963291158,0.03517451,96501.0,96500.0,5.75875182]
[1732963291383,0.03617451,96501.0,96500.0,5.86237782]
[1732963291825,0.03617451,96501.0,96500.0,5.75875182]
[1732963292048,0.03617451,96501.0,96500.0,5.67545182]
[1732963292269,0.13979951,96501.0,96500.0,5.67545182]
[1732963292487,0.03617451,96501.0,96500.0,5.67545182]
[1732963292729,0.03717451,96501.0,96500.0,5.67545182]
[1732963292947,0.03517451,96501.0,96500.0,5.67545182]
[1732963293163,0.03317451,96501.0,96500.0,5.67545182]
[1732963293378,0.03417451,96501.0,96500.0,5.67545182]
[1732963293811,0.03317451,96501.0,96500.0,5.67545182]
[1732963294940,0.13979951,96501.0,96500.0,5.67545182]
[1732963295846,0.13679951,96501.0,96500.0,5.67545182]
[1732963296276,0.13779951,96501.0,96500.0,5.67545182]
[1732963296491,0.13679951,96501.0,96500.0,5.67545182]
[1732963296943,0.13979951,96501.0,96500.0,5.67545182]
[1732963297161,0.14079951,96501.0,96500.0,5.67545182]
[1732963297374,0.03717451,96501.0,96500.0,5.67545182]
[1732963297594,0.14079951,96501.0,96500.0,5.67545182]
[1732963298486,0.03717451,96501.0,96500.0,5.67545182]
[1732963298926,0.14079951,96501.0,96500.0,5.67545182]
[1732963299792,0.13979951,96501.0,96500.0,5.67545182]
[1732963300225,0.13779951,96501.0,96500.0,5.67545182]
[1732963300477,0.13979951,96501.0,96500.0,5.67545182]
[1732963300671,0.13879951,96501.0,96500.0,5.67545182]
[1732963301152,0.03717451,96501.0,96500.0,5.67545182]
[1732963301369,0.14179951,96501.0,96500.0,5.67545182]
[1732963302441,0.0067284,96501.0,96500.0,5.67545182]
[1732963302657,0.0067284,96501.0,96500.0,5.90247782]
[1732963303747,0.0017284,96501.0,96500.0,5.90247782]
[1732963304184,0.0037284,96501.0,96500.0,5.90247782]
[1732963304836,0.0037284,96501.0,96500.0,5.90347782]
[1732963305542,0.0017284,96501.0,96500.0,5.79985182]
[1732963305771,0.1283534,96501.0,96500.0,5.67645182]
[1732963306002,0.0267284,96501.0,96500.0,5.67645182]
[1732963306242,0.0267284,96501.0,96500.0,5.67545182]
[1732963306914,0.0267284,96501.0,96500.0,5.67645182]
[1732963307343,0.0247284,96501.0,96500.0,5.67545182]
[1732963308291,0.0017284,96501.0,96500.0,5.67645182]
[1732963308507,0.0017284,96501.0,96500.0,5.78007782]
[1732963308757,0.0037284,96501.0,96500.0,5.78007782]
[1732963308976,0.0017284,96501.0,96500.0,5.78007782]
[1732963309621,0.0017284,96501.0,96500.0,5.67545182]
[1732963309842,0.0017284,96501.0,96500.0,5.67645182]
[1732963310486,0.0017284,96501.0,96500.0,5.78007782]
[1732963310711,0.0017284,96501.0,96500.0,5.67645182]
[1732963311154,0.1053534,96501.0,96500.0,5.67645182]
[1732963311593,0.0017284,96501.0,96500.0,5.67645182]
[1732963312720,0.0047284,96501.0,96500.0,5.67545182]
[1732963312934,0.0027284,96501.0,96500.0,5.67545182]
[1732963313177,0.0047284,96501.0,96500.0,5.67545182]
[1732963313412,0.0037284,96501.0,96500.0,5.67545182]
[1732963314062,0.0017284,96501.0,96500.0,5.67545182]
[1732963314493,0.1053534,96501.0,96500.0,5.67545182]
[1732963314947,0.0017284,96501.0,96500.0,5.67545182]
[1732963315389,0.1053534,96501.0,96500.0,5.67545182]
[1732963315603,0.1083534,96501.0,96500.0,5.67545182]
[1732963315825,0.1053534,96501.0,96500.0,5.67545182]
[1732963316272,0.1063534,96501.0,96500.0,5.67545182]
[1732963316489,0.1053534,96501.0,96500.0,5.67545182]
[1732963316936,0.1083534,96501.0,96500.0,5.67545182]
[1732963317387,0.1113534,96501.0,96500.0,5.67545182]
[1732963318283,0.1123534,96501.0,96500.0,5.67545182]
[1732963319191,0.14379951,96501.0,96500.0,5.67545182]
[1732963319416,0.11379951,96501.0,96500.0,5.67545182]
[1732963319601,0.14207111,96501.0,96500.0,5.67545182]
[1732963321807,0.01544611,96501.0,96500.0,5.67545182]
[1732963322513,0.007,96501.0,96500.0,5.67545182]
[1732963322757,0.01717411,96501.0,96500.0,5.72105182]
[1732963322989,0.008728,96501.0,96500.0,5.72105182]
[1732963323206,0.01717411,96501.0,96500.0,5.72105182]
[1732963324088,0.01717411,96501.0,96500.0,5.82467782]
[1732963324767,0.008728,96501.0,96500.0,5.82467782]
[1732963327509,0.031728,96501.0,96500.0,5.82467782]
[1732963327740,0.031728,96501.0,96500.0,5.72105182]
[1732963327959,0.135353,96501.0,96500.0,5.67545182]
[1732963328194,0.14379911,96501.0,96500.0,5.67545182]
[1732963328431,0.04017411,96501.0,96500.0,5.67545182]
[1732963329140,0.13779911,96501.0,96500.0,5.67545182]
[1732963329376,0.13679911,96501.0,96500.0,5.67545182]
[1732963329589,0.14079911,96501.0,96500.0,5.67545182]
[1732963329808,0.03717411,96501.0,96500.0,5.67545182]
[1732963330053,0.13779911,96501.0,96500.0,5.67545182]
[1732963330279,0.03317411,96501.0,96500.0,5.67545182]
[1732963330509,0.03417411,96501.0,96500.0,5.67545182]
[1732963330724,0.028728,96501.0,96500.0,5.67545182]
[1732963330947,0.028728,96501.0,96500.0,5.77907782]
[1732963331168,0.027728,96501.0,96500.0,5.77907782]
[1732963332351,0.004728,96501.0,96500.0,5.77907782]
[1732963332587,0.002728,96501.0,96500.0,5.77907782]
[1732963332792,0.005728,96501.0,96500.0,5.77907782]
[1732963333227,0.001728,96501.0,96500.0,5.77907782]
[1732963333489,0.005728,96501.0,96500.0,5.67545182]
[1732963333730,0.002728,96501.0,96500.0,5.77907782]
[1732963334007,0.001728,96501.0,96500.0,5.77907782]
[1732963334243,0.002728,96501.0,96500.0,5.77907782]
[1732963334994,0.21579911,96501.0,96500.0,5.67545182]
[1732963335228,0.37559278,96501.0,96500.0,5.67545182]
[1732963335713,0.37659278,96501.0,96500.0,5.67545182]
[1732963335943,0.37559278,96501.0,96500.0,5.67545182]
[1732963336207,0.36579911,96501.0,96500.0,5.67545182]
[1732963336441,0.36679911,96501.0,96500.0,5.67545182]
[1732963336677,0.36579911,96501.0,96500.0,5.67545182]
[1732963337628,0.36679911,96501.0,96500.0,5.67545182]
[1732963338855,0.36479911,96501.0,96500.0,5.67545182]
[1732963339092,0.36579911,96501.0,96500.0,5.67545182]
[1732963339331,0.37379911,96501.0,96500.0,5.67545182]
[1732963339571,0.37279911,96501.0,96500.0,5.67545182]
[1732963339811,0.48364432,96501.0,96500.0,5.67545182]
[1732963340043,0.47964432,96501.0,96500.0,5.67545182]
[1732963340546,0.48464432,96501.0,96500.0,5.67545182]
[1732963340776,0.47164432,96501.0,96500.0,5.67545182]
[1732963342431,0.48064432,96501.0,96500.0,5.67545182]
[1732963344092,0.46764432,96501.0,96500.0,5.67545182]
[1732963345145,0.67065504,96501.0,96500.0,5.67545182]
[1732963345404,0.6105536,96501.0,96500.0,5.67545182]
[1732963345655,0.58913188,96501.0,96500.0,5.67545182]
[1732963345908,0.60213188,96501.0,96500.0,5.67545182]
[1732963346384,0.58013188,96501.0,96500.0,5.67545182]
[1732963346621,0.58913188,96501.0,96500.0,5.67545182]
[1732963346874,0.59513188,96501.0,96500.0,5.67545182]
[1732963348290,0.60513188,96501.0,96500.0,5.67545182]
[1732963349294,0.59613188,96501.0,96500.0,5.67545182]
[1732963349774,0.60513188,96501.0,96500.0,5.67545182]
[1732963350303,0.61413188,96501.0,96500.0,5.67545182]
[1732963350555,0.59013188,96501.0,96500.0,5.67545182]
[1732963350800,0.59913188,96501.0,96500.0,5.67545182]
[1732963351337,0.59013188,96501.0,96500.0,5.67545182]
[1732963351552,0.59913188,96501.0,96500.0,5.67545182]
[1732963352039,0.60813188,96501.0,96500.0,5.67545182]
[1732963352505,0.71996334,96501.0,96500.0,5.67545182]
[1732963353460,0.61713188,96501.0,96500.0,5.67545182]
[1732963353705,0.61713188,96501.0,96500.0,5.61716402]
[1732963354194,0.60813188,96501.0,96500.0,5.61716402]
[1732963354697,0.61713188,96501.0,96500.0,5.61716402]
[1732963354949,0.59913188,96501.0,96500.0,5.61716402]
[1732963355478,0.60813188,96501.0,96500.0,5.61716402]
[1732963355724,0.59913188,96501.0,96500.0,5.61716402]
[1732963356207,0.70196334,96501.0,96500.0,5.61716402]
[1732963356456,0.60813188,96501.0,96500.0,5.61716402]
[1732963356718,0.57608867,96501.0,96500.0,5.61716402]
[1732963356967,0.59908996,96501.0,96500.0,5.61716402]
[1732963357438,0.60808996,96501.0,96500.0,5.61716402]
[1732963357670,0.57608867,96501.0,96500.0,5.61716402]
[1732963358150,0.56708867,96501.0,96500.0,5.61716402]
[1732963358381,0.57608867,96501.0,96500.0,5.61716402]
[1732963358638,0.66992013,96501.0,96500.0,5.61716402]
[1732963359121,0.67892013,96501.0,96500.0,5.61716402]
[1732963359842,0.73234126,96501.0,96500.0,5.61716402]
[1732963362226,0.6195098,96501.0,96500.0,5.61716402]
[1732963362719,0.47028808,96501.0,96500.0,5.61716402]
[1732963364448,0.43828867,96501.0,96500.0,5.61716402]
[1732963364681,0.43967175,96501.0,96500.0,5.61716402]
[1732963365402,0.40764432,96501.0,96500.0,5.61716402]
[1732963365627,0.43967607,96501.0,96500.0,5.61716402]
[1732963366989,0.28179911,96501.0,96500.0,5.61716402]
[1732963367996,0.27279911,96501.0,96500.0,5.61716402]
[1732963368250,0.29579911,96501.0,96500.0,5.61716402]
[1732963368733,0.30379911,96501.0,96500.0,5.61716402]
[1732963368967,0.29479911,96501.0,96500.0,5.61716402]
[1732963369204,0.30679911,96501.0,96500.0,5.61716402]
[1732963369663,0.30279911,96501.0,96500.0,5.61716402]
[1732963370179,0.30679911,96501.0,96500.0,5.61716402]
[1732963370700,0.40964432,96501.0,96500.0,5.61716402]
[1732963372125,0.40564432,96501.0,96500.0,5.61716402]
[1732963372618,0.40964432,96501.0,96500.0,5.61716402]
[1732963373120,0.40564432,96501.0,96500.0,5.61716402]
[1732963373352,0.40964432,96501.0,96500.0,5.61716402]
[1732963373599,0.44172678,96501.0,96500.0,5.61716402]
[1732963373862,0.51346771,96501.0,96500.0,5.61716402]
[1732963374386,0.52246771,96501.0,96500.0,5.61716402]
[1732963374606,0.51846771,96501.0,96500.0,5.61716402]
[1732963374880,0.44372678,96501.0,96500.0,5.61716402]
[1732963375091,0.39364432,96501.0,96500.0,5.61716402]
[1732963375336,0.26379911,96501.0,96500.0,5.61716402]
[1732963375581,0.27279911,96501.0,96500.0,5.69246402]
[1732963375805,0.27279911,96501.0,96500.0,5.61716402]
[1732963375806,0.27779911,96501.0,96500.0,5.61716402]
[1732963376022,0.38064432,96501.0,96500.0,5.61716402]
[1732963376941,0.40364432,96501.0,96500.0,5.61716402]
[1732963379683,0.40064432,96501.0,96500.0,5.61716402]
[1732963381821,0.40237232,96501.0,96500.0,5.61716402]
[1732963385268,0.038728,96501.0,96500.0,5.69246402]
[1732963385479,0.04717411,96501.0,96500.0,5.74066402]
[1732963385707,0.015728,96501.0,96500.0,5.84429002]
[1732963386886,0.010728,96501.0,96500.0,5.84429002]
[1732963388048,0.001728,96501.0,96500.0,5.84429002]
[1732963388298,0.002728,96501.0,96500.0,5.84429002]
[1732963393457,0.002728,96501.0,96500.0,5.84629002]
[1732963394947,0.001728,96501.0,96500.0,5.84629002]
[1732963395209,0.001728,96501.0,96500.0,5.84729002]
[1732963399583,0.001728,96501.0,96500.0,5.74366402]
[1732963400096,0.105353,96501.0,96500.0,5.74366402]
[1732963400585,0.001728,96501.0,96500.0,5.74366402]
[1732963401054,0.105353,96501.0,96500.0,5.74166402]
[1732963401279,0.001728,96501.0,96500.0,5.74266402]
[1732963401511,0.105353,96501.0,96500.0,5.74266402]
[1732963401737,0.105353,96501.0,96500.0,5.74166402]
[1732963402216,0.105353,96501.0,96500.0,5.74066402]
[1732963403491,0.106353,96501.0,96500.0,5.74066402]
[1732963403758,0.13779911,96501.0,96500.0,5.61716402]
[1732963403983,0.13679911,96501.0,96500.0,5.61716402]
[1732963404477,0.14279911,96501.0,96500.0,5.61716402]
[1732963404938,0.39364432,96501.0,96500.0,5.61716402]
[1732963405174,0.39664432,96501.0,96500.0,5.61716402]
[1732963405649,0.39264432,96501.0,96500.0,5.61716402]
[1732963405873,0.52344432,96501.0,96500.0,5.61716402]
[1732963406111,0.53952894,96501.0,96500.0,5.61716402]
[1732963406352,0.56191914,96501.0,96500.0,5.61716402]
[1732963406589,0.56991914,96501.0,96500.0,5.61716402]
[1732963407040,0.55191914,96501.0,96500.0,5.61716402]
[1732963407262,0.56091914,96501.0,96500.0,5.61716402]
[1732963407493,0.56491914,96501.0,96500.0,5.61716402]
[1732963408009,0.56091914,96501.0,96500.0,5.61716402]
[1732963408246,0.56791914,96501.0,96500.0,5.61716402]
[1732963408985,0.57691914,96501.0,96500.0,5.61716402]
[1732963409228,0.58814995,96501.0,96500.0,5.61716402]
[1732963409720,0.53884995,96501.0,96500.0,5.61716402]
[1732963409955,0.45734995,96501.0,96500.0,5.61716402]
[1732963411368,0.42587513,96501.0,96500.0,5.61716402]
[1732963435717,0.45796684,96501.0,96500.0,5.61716402]
[1732963445125,0.50456684,96501.0,96500.0,5.61716402]
[1732963446785,0.45796684,96501.0,96500.0,5.61716402]
[1732963450671,0.48944166,96501.0,96500.0,5.61716402]
[1732963452297,0.51086338,96501.0,96500.0,5.61716402]
[1732963452987,0.50386338,96501.0,96500.0,5.61716402]
[1732963453446,0.49386338,96501.0,96500.0,5.61716402]
[1732963453671,0.50286338,96501.0,96500.0,5.61716402]
[1732963453940,0.49486338,96501.0,96500.0,5.61716402]
[1732963454882,0.48586338,96501.0,96500.0,5.61716402]
[1732963455383,0.50386338,96501.0,96500.0,5.61716402]
[1732963455626,0.49486338,96501.0,96500.0,5.61716402]
[1732963456079,0.50286338,96501.0,96500.0,5.61716402]
[1732963456320,0.48144166,96501.0,96500.0,5.61716402]
[1732963463079,0.44996684,96501.0,96500.0,5.61716402]
[1732963465572,0.44196684,96501.0,96500.0,5.61716402]
[1732963465805,0.44096684,96501.0,96500.0,5.61716402]
[1732963466024,0.44996684,96501.0,96500.0,5.61716402]
[1732963467440,0.44096684,96501.0,96500.0,5.61716402]
[1732963467681,0.44996684,96501.0,96500.0,5.61716402]
[1732963468180,0.44196684,96501.0,96500.0,5.61716402]
[1732963468637,0.44096684,96501.0,96500.0,5.61716402]
[1732963468861,0.44996684,96501.0,96500.0,5.61716402]
[1732963469133,0.44196684,96501.0,96500.0,5.61716402]
[1732963469361,0.44996684,96501.0,96500.0,5.61716402]
[1732963477777,0.33867552,96501.0,96500.0,5.61716402]
[1732963478016,0.07049663,96501.0,96500.0,5.73906402]
[1732963478269,0.03840492,96501.0,96500.0,5.73906402]
[1732963478525,0.14202992,96501.0,96500.0,5.7388591]
[1732963478766,0.12502992,96501.0,96500.0,5.7388591]
[1732963479002,0.13402992,96501.0,96500.0,5.7388591]
[1732963479239,0.14202992,96501.0,96500.0,5.7388591]
[1732963479486,0.16502992,96501.0,96500.0,5.7388591]
[1732963479728,0.15702992,96501.0,96500.0,5.7388591]